[Event "*** Titled Tuesday Blitz"]
[Site "Chess.com"]
[Date "2021.03.09"]
[Round "2"]
[White "Kotofeyca"]
[Black "zurzan"]
[Result "1-0"]
[WhiteElo "2375"]
[BlackElo "1959"]
[TimeControl "180+1"]
[EndTime "10:16:36 PST"]
[Termination "Kotofeyca won by resignation"]

1. d4 {[%clk 0:03:00.9]} 1... d6 {[%clk 0:00:28.6]} 2. c4 {[%clk 0:02:57.7]}
2... f5 {[%clk 0:00:28.4]} 3. Nc3 {[%clk 0:02:56.6]} 3... Nf6 {[%clk 0:00:28.3]}
4. Bg5 {[%clk 0:02:56.6]} 4... g6 {[%clk 0:00:29.2]} 5. Bxf6 {[%clk 0:02:55.7]}
5... exf6 {[%clk 0:00:28.8]} 6. e3 {[%clk 0:02:56.6]} 6... Qe7 {[%clk
0:00:28.6]} 7. Bd3 {[%clk 0:02:57.3]} 7... c6 {[%clk 0:00:28.9]} 8. Qf3 {[%clk
0:02:57.3]} 8... Bg7 {[%clk 0:00:27.4]} 9. h4 {[%clk 0:02:57.8]} 9... Na6 {[%clk
0:00:25.6]} 10. h5 {[%clk 0:02:54.9]} 10... Be6 {[%clk 0:00:25.4]} 11. a3 {[%clk
0:02:39.9]} 11... O-O-O {[%clk 0:00:23.5]} 12. Nge2 {[%clk 0:02:35.7]} 12... g5
{[%clk 0:00:23.6]} 13. Bxf5 {[%clk 0:02:32.9]} 13... Bxf5 {[%clk 0:00:23.8]} 14.
Qxf5+ {[%clk 0:02:33.7]} 14... Kb8 {[%clk 0:00:24.7]} 15. h6 {[%clk 0:02:30]}
15... Bf8 {[%clk 0:00:24.1]} 16. Ng3 {[%clk 0:02:25.3]} 16... d5 {[%clk
0:00:23.6]} 17. cxd5 {[%clk 0:02:17.2]} 17... cxd5 {[%clk 0:00:23.6]} 18. Nxd5
{[%clk 0:02:14.4]} 18... Qd6 {[%clk 0:00:24.5]} 19. Nxf6 {[%clk 0:02:07]} 19...
Be7 {[%clk 0:00:24.4]} 20. Nge4 {[%clk 0:02:05.4]} 20... Qc7 {[%clk 0:00:22.4]}
21. Nd5 {[%clk 0:01:53.2]} 21... Qd6 {[%clk 0:00:20.2]} 22. Nxd6 {[%clk
0:01:52.2]} 1-0

[Event "*** Titled Tuesday Blitz"]
[Site "Chess.com"]
[Date "2021.03.09"]
[Round "2"]
[White "Moon_stone123"]
[Black "suneebaker"]
[Result "1-0"]
[WhiteElo "2507"]
[BlackElo "2212"]
[TimeControl "180+1"]
[EndTime "10:16:38 PST"]
[Termination "Moon_stone123 won by resignation"]

1. e4 {[%clk 0:03:00.9]} 1... e5 {[%clk 0:02:59]} 2. Nf3 {[%clk 0:03:00.8]} 2...
Nc6 {[%clk 0:02:58.9]} 3. Bb5 {[%clk 0:03:00.5]} 3... a6 {[%clk 0:02:58.1]} 4.
Ba4 {[%clk 0:03:00.7]} 4... Nf6 {[%clk 0:02:57.9]} 5. O-O {[%clk 0:03:00.1]}
5... Be7 {[%clk 0:02:57.8]} 6. Re1 {[%clk 0:03:00]} 6... b5 {[%clk 0:02:57.9]}
7. Bb3 {[%clk 0:03:00.5]} 7... O-O {[%clk 0:02:57.8]} 8. a4 {[%clk 0:02:59.5]}
8... Rb8 {[%clk 0:02:52.8]} 9. d3 {[%clk 0:02:52]} 9... d6 {[%clk 0:02:52.4]}
10. Nc3 {[%clk 0:02:51.8]} 10... Na5 {[%clk 0:02:49.3]} 11. Ba2 {[%clk
0:02:50.8]} 11... b4 {[%clk 0:02:49.1]} 12. Ne2 {[%clk 0:02:49.7]} 12... b3
{[%clk 0:02:47.2]} 13. cxb3 {[%clk 0:02:45.2]} 13... c5 {[%clk 0:02:46.9]} 14.
Bd2 {[%clk 0:02:39.6]} 14... Nc6 {[%clk 0:02:36.5]} 15. Ng3 {[%clk 0:02:32.9]}
15... Re8 {[%clk 0:02:18.5]} 16. Bc3 {[%clk 0:01:58.8]} 16... Nb4 {[%clk
0:02:16.8]} 17. h3 {[%clk 0:01:53.3]} 17... Be6 {[%clk 0:02:14.8]} 18. Ng5
{[%clk 0:01:50.1]} 18... Nxa2 {[%clk 0:02:14.4]} 19. Rxa2 {[%clk 0:01:41.4]}
19... Bxb3 {[%clk 0:02:13.1]} 20. Qa1 {[%clk 0:01:42]} 20... Bxa2 {[%clk
0:02:12.4]} 21. Qxa2 {[%clk 0:01:42.9]} 21... h6 {[%clk 0:02:11.5]} 22. Nxf7
{[%clk 0:01:29.1]} 22... Qb6 {[%clk 0:02:04.7]} 23. Nxd6+ {[%clk 0:01:28]} 23...
Qb3 {[%clk 0:02:03.8]} 24. Qxb3+ {[%clk 0:01:26.7]} 24... Rxb3 {[%clk
0:02:03.3]} 25. Nxe8 {[%clk 0:01:27.6]} 25... Nxe8 {[%clk 0:02:02.3]} 26. Bxe5
{[%clk 0:01:27.7]} 26... Rxd3 {[%clk 0:02:01.4]} 27. Nf5 {[%clk 0:01:27.1]}
27... Bf8 {[%clk 0:01:57.7]} 28. Rc1 {[%clk 0:01:23.3]} 28... Rd2 {[%clk
0:01:50.6]} 29. Bc3 {[%clk 0:01:21.2]} 29... Rd3 {[%clk 0:01:47]} 30. Kf1 {[%clk
0:01:20.1]} 30... g6 {[%clk 0:01:40.3]} 31. Ne3 {[%clk 0:01:18.1]} 31... Nd6
{[%clk 0:01:39.8]} 32. Ke2 {[%clk 0:01:18.1]} 32... Rd4 {[%clk 0:01:24.3]} 33.
Bxd4 {[%clk 0:01:16.9]} 33... cxd4 {[%clk 0:01:23.8]} 34. Nc2 {[%clk 0:01:15.4]}
1-0

[Event "*** Titled Tuesday Blitz"]
[Site "Chess.com"]
[Date "2021.03.09"]
[Round "2"]
[White "NicoChasin"]
[Black "SameerMujumdar"]
[Result "1-0"]
[WhiteElo "2632"]
[BlackElo "2342"]
[TimeControl "180+1"]
[EndTime "10:16:42 PST"]
[Termination "NicoChasin won by resignation"]

1. d4 {[%clk 0:02:59.9]} 1... Nf6 {[%clk 0:02:59.8]} 2. c4 {[%clk 0:02:59.5]}
2... g6 {[%clk 0:03:00.2]} 3. Nc3 {[%clk 0:02:59.3]} 3... Bg7 {[%clk 0:03:00.9]}
4. e4 {[%clk 0:02:59.6]} 4... d6 {[%clk 0:03:01.5]} 5. Nf3 {[%clk 0:03:00.1]}
5... O-O {[%clk 0:03:02.2]} 6. Be2 {[%clk 0:03:00.6]} 6... Na6 {[%clk
0:03:02.7]} 7. O-O {[%clk 0:03:01.1]} 7... e5 {[%clk 0:03:03.4]} 8. Be3 {[%clk
0:03:01.5]} 8... Ng4 {[%clk 0:03:02.4]} 9. Bg5 {[%clk 0:03:01.7]} 9... Qe8
{[%clk 0:03:03]} 10. d5 {[%clk 0:03:01.6]} 10... h6 {[%clk 0:02:53.7]} 11. Bd2
{[%clk 0:02:58.7]} 11... f5 {[%clk 0:02:53.5]} 12. Ne1 {[%clk 0:02:56.9]} 12...
Nf6 {[%clk 0:02:49.1]} 13. f3 {[%clk 0:02:57.2]} 13... Nc5 {[%clk 0:02:48.7]}
14. b4 {[%clk 0:02:56.8]} 14... Ncd7 {[%clk 0:02:44.7]} 15. Nd3 {[%clk
0:02:56.7]} 15... Qe7 {[%clk 0:02:34.3]} 16. Be3 {[%clk 0:02:54.2]} 16... f4
{[%clk 0:02:34.9]} 17. Bf2 {[%clk 0:02:53.6]} 17... g5 {[%clk 0:02:33.5]} 18. c5
{[%clk 0:02:53.3]} 18... a6 {[%clk 0:02:32.2]} 19. Rc1 {[%clk 0:02:51.9]} 19...
h5 {[%clk 0:02:30.1]} 20. Na4 {[%clk 0:02:46.4]} 20... g4 {[%clk 0:02:25.9]} 21.
Bh4 {[%clk 0:02:41.6]} 21... Rf7 {[%clk 0:01:37.8]} 22. cxd6 {[%clk 0:02:29.4]}
22... cxd6 {[%clk 0:01:37.6]} 23. Rc7 {[%clk 0:02:28.9]} 23... Qf8 {[%clk
0:01:36]} 24. Qc2 {[%clk 0:02:22.8]} 24... b5 {[%clk 0:01:36.3]} 25. Rc1 {[%clk
0:02:21.6]} 25... bxa4 {[%clk 0:01:26.2]} 26. Rxc8 {[%clk 0:02:20.8]} 26... Rxc8
{[%clk 0:01:26.8]} 27. Qxc8 {[%clk 0:02:19.5]} 27... Nb6 {[%clk 0:01:24.7]} 28.
Qxf8+ {[%clk 0:02:19]} 28... Rxf8 {[%clk 0:01:25]} 29. Rc6 {[%clk 0:02:18.9]}
29... Rb8 {[%clk 0:01:20.3]} 30. a3 {[%clk 0:02:16.8]} 30... Ne8 {[%clk
0:01:00.1]} 31. Bf2 {[%clk 0:02:02.6]} 31... Nd7 {[%clk 0:00:36.6]} 32. Rxa6
{[%clk 0:02:01.1]} 32... Nc7 {[%clk 0:00:30.1]} 33. Rxd6 {[%clk 0:02:00.4]}
33... Nb5 {[%clk 0:00:29.1]} 34. Rxd7 {[%clk 0:02:00.2]} 34... Nxa3 {[%clk
0:00:30]} 35. Ra7 {[%clk 0:01:57.4]} 1-0

[Event "*** Titled Tuesday Blitz"]
[Site "Chess.com"]
[Date "2021.03.09"]
[Round "2"]
[White "Aygehovit1992"]
[Black "Kopytkin"]
[Result "1-0"]
[WhiteElo "2638"]
[BlackElo "2359"]
[TimeControl "180+1"]
[EndTime "10:17:02 PST"]
[Termination "Aygehovit1992 won by resignation"]

1. Nf3 {[%clk 0:03:00.9]} 1... Nf6 {[%clk 0:02:58.8]} 2. g3 {[%clk 0:02:59.2]}
2... g6 {[%clk 0:02:59]} 3. Bg2 {[%clk 0:02:59.4]} 3... Bg7 {[%clk 0:02:59.9]}
4. O-O {[%clk 0:02:58.7]} 4... O-O {[%clk 0:03:00.8]} 5. d4 {[%clk 0:02:58.3]}
5... d6 {[%clk 0:03:00.6]} 6. c4 {[%clk 0:02:58]} 6... Nc6 {[%clk 0:03:00.8]} 7.
Nc3 {[%clk 0:02:58]} 7... e5 {[%clk 0:03:00.9]} 8. dxe5 {[%clk 0:02:55.7]} 8...
Nxe5 {[%clk 0:03:01.8]} 9. Qb3 {[%clk 0:02:44.1]} 9... c6 {[%clk 0:02:57]} 10.
Bg5 {[%clk 0:02:41.3]} 10... Qc7 {[%clk 0:02:56.6]} 11. Rfd1 {[%clk 0:02:38.1]}
11... Be6 {[%clk 0:02:56.6]} 12. Nxe5 {[%clk 0:02:36.5]} 12... dxe5 {[%clk
0:02:56.2]} 13. Rac1 {[%clk 0:02:37.2]} 13... Qb6 {[%clk 0:02:37.5]} 14. Qxb6
{[%clk 0:02:23.1]} 14... axb6 {[%clk 0:02:37.2]} 15. b3 {[%clk 0:02:23.8]} 15...
h6 {[%clk 0:02:25]} 16. Be3 {[%clk 0:02:18.7]} 16... Nd7 {[%clk 0:02:25.1]} 17.
Na4 {[%clk 0:01:54.8]} 17... Ra6 {[%clk 0:02:21.7]} 18. Rd2 {[%clk 0:01:54.8]}
18... Rfa8 {[%clk 0:02:06.3]} 19. Rcd1 {[%clk 0:01:52.2]} 19... Rxa4 {[%clk
0:02:04.9]} 20. bxa4 {[%clk 0:01:50.7]} 20... Nc5 {[%clk 0:02:04.8]} 21. Rd8+
{[%clk 0:01:49.8]} 21... Rxd8 {[%clk 0:02:04.3]} 22. Rxd8+ {[%clk 0:01:50.7]}
22... Kh7 {[%clk 0:02:00.1]} 23. a5 {[%clk 0:01:39.7]} 23... Bxc4 {[%clk
0:01:49.8]} 24. axb6 {[%clk 0:01:38.7]} 24... Ne6 {[%clk 0:01:34]} 25. Rd7
{[%clk 0:01:34.4]} 25... Ba6 {[%clk 0:01:29.8]} 26. Rxf7 {[%clk 0:01:34.3]}
26... Kg8 {[%clk 0:01:29.7]} 27. Re7 {[%clk 0:01:33.8]} 27... Nd4 {[%clk
0:01:28.7]} 28. Bxd4 {[%clk 0:01:32.6]} 28... exd4 {[%clk 0:01:28.6]} 29. Bxc6
{[%clk 0:01:31.2]} 29... Bf8 {[%clk 0:01:28.8]} 30. Bd5+ {[%clk 0:01:29.1]}
30... Kh8 {[%clk 0:01:27.5]} 31. Rf7 {[%clk 0:01:24.9]} 31... Bc5 {[%clk
0:01:25]} 32. Bxb7 {[%clk 0:01:24.3]} 32... Bxe2 {[%clk 0:01:18.7]} 33. Bf3
{[%clk 0:01:23.4]} 33... Bxf3 {[%clk 0:01:10.2]} 34. Rxf3 {[%clk 0:01:24.3]}
34... Bxb6 {[%clk 0:01:10.6]} 35. Rb3 {[%clk 0:01:23.9]} 35... Bc5 {[%clk
0:01:10.3]} 36. Rb7 {[%clk 0:01:24]} 36... Ba3 {[%clk 0:01:01.6]} 37. Kf1 {[%clk
0:01:24.9]} 1-0

[Event "*** Titled Tuesday Blitz"]
[Site "Chess.com"]
[Date "2021.03.09"]
[Round "2"]
[White "exoticprincess"]
[Black "Artyom_ChessMate"]
[Result "1-0"]
[WhiteElo "2881"]
[BlackElo "2551"]
[TimeControl "180+1"]
[EndTime "10:17:04 PST"]
[Termination "exoticprincess won by resignation"]

1. d4 {[%clk 0:03:00.9]} 1... d5 {[%clk 0:03:00]} 2. Nc3 {[%clk 0:03:01.8]} 2...
Nf6 {[%clk 0:02:57.6]} 3. Bf4 {[%clk 0:03:02.3]} 3... c5 {[%clk 0:02:49.2]} 4.
e3 {[%clk 0:03:02.1]} 4... a6 {[%clk 0:02:48.6]} 5. dxc5 {[%clk 0:03:00.8]} 5...
Nc6 {[%clk 0:02:45.7]} 6. Nf3 {[%clk 0:02:56.5]} 6... Bg4 {[%clk 0:02:24.3]} 7.
Be2 {[%clk 0:02:56.1]} 7... e6 {[%clk 0:02:22]} 8. Na4 {[%clk 0:02:48.8]} 8...
Bxc5 {[%clk 0:02:13.2]} 9. Nxc5 {[%clk 0:02:48.2]} 9... Qa5+ {[%clk 0:02:13.3]}
10. c3 {[%clk 0:02:49.1]} 10... Qxc5 {[%clk 0:02:13.5]} 11. O-O {[%clk
0:02:49.4]} 11... O-O {[%clk 0:02:13.3]} 12. h3 {[%clk 0:02:46.7]} 12... Bh5
{[%clk 0:02:04]} 13. Rc1 {[%clk 0:02:42.5]} 13... b5 {[%clk 0:02:02.4]} 14. a4
{[%clk 0:02:34.8]} 14... Ne4 {[%clk 0:01:57.3]} 15. axb5 {[%clk 0:02:34.5]}
15... axb5 {[%clk 0:01:58.2]} 16. g4 {[%clk 0:02:25]} 16... Bg6 {[%clk
0:01:56.7]} 17. Qb3 {[%clk 0:02:25.3]} 17... Ra5 {[%clk 0:01:37.4]} 18. Rfd1
{[%clk 0:02:14.2]} 18... Rfa8 {[%clk 0:01:33]} 19. Nd4 {[%clk 0:02:10.2]} 19...
e5 {[%clk 0:01:02.6]} 20. Nxc6 {[%clk 0:02:09.4]} 20... exf4 {[%clk 0:01:02.6]}
21. Qxd5 {[%clk 0:01:59.4]} 21... Qxd5 {[%clk 0:00:41]} 22. Rxd5 {[%clk
0:02:00.3]} 22... Ra1 {[%clk 0:00:40.1]} 23. Rxa1 {[%clk 0:01:59.5]} 23... Rxa1+
{[%clk 0:00:41]} 24. Kg2 {[%clk 0:02:00.4]} 24... h6 {[%clk 0:00:27.9]} 25. exf4
{[%clk 0:01:50.7]} 25... Re1 {[%clk 0:00:16.5]} 26. Bf3 {[%clk 0:01:47.7]} 26...
f5 {[%clk 0:00:12.3]} 27. Ne7+ {[%clk 0:01:46]} 27... Kh7 {[%clk 0:00:12.5]} 28.
Nxg6 {[%clk 0:01:46.9]} 1-0

[Event "*** Titled Tuesday Blitz"]
[Site "Chess.com"]
[Date "2021.03.09"]
[Round "2"]
[White "Romadk"]
[Black "Harry_Rakkel"]
[Result "0-1"]
[WhiteElo "2365"]
[BlackElo "2640"]
[TimeControl "180+1"]
[EndTime "10:17:07 PST"]
[Termination "Harry_Rakkel won by resignation"]

1. d4 {[%clk 0:03:00.9]} 1... Nf6 {[%clk 0:02:58.8]} 2. Nf3 {[%clk 0:03:01.2]}
2... e6 {[%clk 0:02:57.6]} 3. g3 {[%clk 0:03:00.5]} 3... d5 {[%clk 0:02:55.5]}
4. Bg2 {[%clk 0:03:00.5]} 4... b5 {[%clk 0:02:55]} 5. O-O {[%clk 0:02:59.3]}
5... Bb7 {[%clk 0:02:53.2]} 6. Qd3 {[%clk 0:02:59.8]} 6... a6 {[%clk 0:02:51.6]}
7. Bg5 {[%clk 0:03:00.1]} 7... Nbd7 {[%clk 0:02:50.9]} 8. a4 {[%clk 0:03:00.2]}
8... b4 {[%clk 0:02:50]} 9. c4 {[%clk 0:02:59.4]} 9... c5 {[%clk 0:02:46.8]} 10.
Ne5 {[%clk 0:02:47.7]} 10... dxc4 {[%clk 0:02:36.7]} 11. Qxc4 {[%clk 0:02:42.7]}
11... Bxg2 {[%clk 0:02:31.8]} 12. Kxg2 {[%clk 0:02:43.6]} 12... cxd4 {[%clk
0:02:17.3]} 13. Nc6 {[%clk 0:01:47.7]} 13... Qc7 {[%clk 0:02:15.8]} 14. Rc1
{[%clk 0:01:48]} 14... Rc8 {[%clk 0:01:54.3]} 15. Qxd4 {[%clk 0:01:46.9]} 15...
Qb7 {[%clk 0:01:48.3]} 16. Bxf6 {[%clk 0:01:36.5]} 16... Rxc6 {[%clk 0:01:34.1]}
17. Qe4 {[%clk 0:01:29.7]} 17... Nc5 {[%clk 0:01:33.6]} 18. Qf3 {[%clk
0:01:20.8]} 18... gxf6 {[%clk 0:01:30.2]} 19. Qxf6 {[%clk 0:01:13.2]} 19... Ne4
{[%clk 0:01:18]} 20. Qxh8 {[%clk 0:01:04.6]} 20... Rxc1 {[%clk 0:01:17.5]} 21.
f3 {[%clk 0:01:01.5]} 21... Rc2 {[%clk 0:00:56.7]} 22. Qxh7 {[%clk 0:00:55.3]}
22... Rxe2+ {[%clk 0:00:53.7]} 23. Kh3 {[%clk 0:00:55.5]} 23... Ng5+ {[%clk
0:00:51.4]} 0-1

[Event "*** Titled Tuesday Blitz"]
[Site "Chess.com"]
[Date "2021.03.09"]
[Round "2"]
[White "Alexsur1981"]
[Black "MaevskiyNikolay"]
[Result "1-0"]
[WhiteElo "2833"]
[BlackElo "2534"]
[TimeControl "180+1"]
[EndTime "10:17:13 PST"]
[Termination "Alexsur1981 won by checkmate"]

1. e4 {[%clk 0:03:00.9]} 1... c6 {[%clk 0:02:59.1]} 2. Nc3 {[%clk 0:02:59]} 2...
d5 {[%clk 0:02:59.3]} 3. Qe2 {[%clk 0:02:58.5]} 3... d4 {[%clk 0:02:58.4]} 4.
Nd1 {[%clk 0:02:57.9]} 4... c5 {[%clk 0:02:58.8]} 5. g3 {[%clk 0:02:57.3]} 5...
Nc6 {[%clk 0:02:59]} 6. d3 {[%clk 0:02:57.4]} 6... e5 {[%clk 0:02:56.5]} 7. f4
{[%clk 0:02:57.3]} 7... Bd6 {[%clk 0:02:56.6]} 8. Bh3 {[%clk 0:02:56]} 8... Nge7
{[%clk 0:02:54.8]} 9. Bxc8 {[%clk 0:02:54.8]} 9... Rxc8 {[%clk 0:02:54.7]} 10.
f5 {[%clk 0:02:55.3]} 10... h5 {[%clk 0:02:53.8]} 11. Nf3 {[%clk 0:02:54.6]}
11... b5 {[%clk 0:02:48.3]} 12. O-O {[%clk 0:02:53.5]} 12... Ng8 {[%clk
0:02:42.9]} 13. Nf2 {[%clk 0:02:51.6]} 13... Nf6 {[%clk 0:02:42.7]} 14. Bg5
{[%clk 0:02:50.3]} 14... Be7 {[%clk 0:02:43.1]} 15. Bxf6 {[%clk 0:02:46.3]}
15... Bxf6 {[%clk 0:02:42]} 16. a4 {[%clk 0:02:45.9]} 16... b4 {[%clk
0:02:34.4]} 17. b3 {[%clk 0:02:40.6]} 17... Bg5 {[%clk 0:02:26.9]} 18. h4 {[%clk
0:02:35.5]} 18... Be3 {[%clk 0:02:24.4]} 19. Kh2 {[%clk 0:02:34]} 19... Bxf2
{[%clk 0:02:23.2]} 20. Rxf2 {[%clk 0:02:33.6]} 20... f6 {[%clk 0:02:21.6]} 21.
Rg1 {[%clk 0:02:32.4]} 21... Rh7 {[%clk 0:02:17.8]} 22. g4 {[%clk 0:02:31.5]}
22... hxg4 {[%clk 0:02:17.8]} 23. Rxg4 {[%clk 0:02:32.4]} 23... Rc7 {[%clk
0:02:16.1]} 24. Rfg2 {[%clk 0:02:32.7]} 24... Rf7 {[%clk 0:02:15.8]} 25. R2g3
{[%clk 0:02:29.8]} 25... Qe7 {[%clk 0:02:15.8]} 26. Qg2 {[%clk 0:02:29.6]} 26...
Qf8 {[%clk 0:02:14.6]} 27. Kg1 {[%clk 0:02:29.4]} 27... Kd7 {[%clk 0:02:13.9]}
28. Kf1 {[%clk 0:02:29.5]} 28... Qh8 {[%clk 0:02:13.3]} 29. Ke1 {[%clk
0:02:29.3]} 29... Kd6 {[%clk 0:02:08.4]} 30. Kd1 {[%clk 0:02:28.9]} 30... Nb8
{[%clk 0:02:07.7]} 31. Kc1 {[%clk 0:02:27.7]} 31... Nc6 {[%clk 0:02:07.3]} 32.
Kb2 {[%clk 0:02:27.2]} 32... Ne7 {[%clk 0:02:07.3]} 33. Nd2 {[%clk 0:02:19.6]}
33... Kd7 {[%clk 0:02:02.1]} 34. Nc4 {[%clk 0:02:18.5]} 34... Nc8 {[%clk
0:01:58]} 35. Rg6 {[%clk 0:02:06.4]} 35... Ne7 {[%clk 0:01:51.2]} 36. h5 {[%clk
0:02:04.4]} 36... Nc8 {[%clk 0:01:17.2]} 37. h6 {[%clk 0:02:00.8]} 37... Rxh6
{[%clk 0:01:15.4]} 38. Rxg7 {[%clk 0:01:59.7]} 38... Rxg7 {[%clk 0:01:10.5]} 39.
Rxg7+ {[%clk 0:02:00.6]} 39... Ne7 {[%clk 0:01:10.8]} 40. Qg4 {[%clk 0:01:39.4]}
40... Rh1 {[%clk 0:01:07.6]} 41. Nxe5+ {[%clk 0:01:35.6]} 41... fxe5 {[%clk
0:01:00.8]} 42. f6+ {[%clk 0:01:35.2]} 42... Kc6 {[%clk 0:00:59]} 43. Qe6+
{[%clk 0:01:33.4]} 43... Kb7 {[%clk 0:00:58.2]} 44. Qxe7+ {[%clk 0:01:33.4]}
44... Ka6 {[%clk 0:00:58.3]} 45. Qxa7# {[%clk 0:01:32.6]} 1-0

[Event "*** Titled Tuesday Blitz"]
[Site "Chess.com"]
[Date "2021.03.09"]
[Round "2"]
[White "BvsN"]
[Black "Treacherous_horse64"]
[Result "1-0"]
[WhiteElo "2316"]
[BlackElo "2534"]
[TimeControl "180+1"]
[EndTime "10:17:18 PST"]
[Termination "BvsN won on time"]

1. c4 {[%clk 0:03:00.9]} 1... Nf6 {[%clk 0:02:50.2]} 2. Nc3 {[%clk 0:03:01]}
2... g6 {[%clk 0:02:50.5]} 3. e4 {[%clk 0:03:00.9]} 3... d6 {[%clk 0:02:50.4]}
4. d4 {[%clk 0:03:01]} 4... Bg7 {[%clk 0:02:50.4]} 5. Nge2 {[%clk 0:03:01.4]}
5... O-O {[%clk 0:02:49.6]} 6. f3 {[%clk 0:03:01.8]} 6... c5 {[%clk 0:02:45.4]}
7. d5 {[%clk 0:03:01.9]} 7... e6 {[%clk 0:02:44.9]} 8. Ng3 {[%clk 0:03:02.4]}
8... exd5 {[%clk 0:02:44.7]} 9. cxd5 {[%clk 0:03:03.3]} 9... Nbd7 {[%clk
0:02:42.9]} 10. Be2 {[%clk 0:03:03.1]} 10... Ne5 {[%clk 0:02:36.7]} 11. O-O
{[%clk 0:03:02.7]} 11... a6 {[%clk 0:02:26.8]} 12. a4 {[%clk 0:03:01.1]} 12...
h5 {[%clk 0:02:11.6]} 13. Bg5 {[%clk 0:02:59]} 13... Qc7 {[%clk 0:02:06.7]} 14.
Qd2 {[%clk 0:02:56.2]} 14... c4 {[%clk 0:02:00]} 15. Nh1 {[%clk 0:02:46.7]}
15... Nh7 {[%clk 0:01:53]} 16. Bh6 {[%clk 0:02:38.8]} 16... Bxh6 {[%clk
0:01:35.7]} 17. Qxh6 {[%clk 0:02:38.5]} 17... Qc5+ {[%clk 0:01:36.6]} 18. Nf2
{[%clk 0:02:38.8]} 18... Bd7 {[%clk 0:01:29.3]} 19. Kh1 {[%clk 0:02:34.5]} 19...
b5 {[%clk 0:01:00.9]} 20. h3 {[%clk 0:02:14.8]} 20... b4 {[%clk 0:00:53.4]} 21.
Ncd1 {[%clk 0:02:14.5]} 21... Qd4 {[%clk 0:00:18.9]} 22. Qe3 {[%clk 0:01:54.2]}
22... Qxe3 {[%clk 0:00:11.1]} 23. Nxe3 {[%clk 0:01:54.6]} 23... Rfc8 {[%clk
0:00:06.8]} 24. f4 {[%clk 0:01:50.5]} 24... Nd3 {[%clk 0:00:07.2]} 25. Nxd3
{[%clk 0:01:44.5]} 25... cxd3 {[%clk 0:00:08.1]} 26. Bxd3 {[%clk 0:01:44.8]}
26... a5 {[%clk 0:00:04.6]} 27. Nc4 {[%clk 0:01:38.5]} 1-0

[Event "*** Titled Tuesday Blitz"]
[Site "Chess.com"]
[Date "2021.03.09"]
[Round "2"]
[White "Genghis_K"]
[Black "eldur16"]
[Result "1-0"]
[WhiteElo "2913"]
[BlackElo "2565"]
[TimeControl "180+1"]
[EndTime "10:17:19 PST"]
[Termination "Genghis_K won by resignation"]

1. e4 {[%clk 0:03:00.9]} 1... Nf6 {[%clk 0:02:59.9]} 2. e5 {[%clk 0:03:00.6]}
2... Nd5 {[%clk 0:03:00.1]} 3. d4 {[%clk 0:03:01.3]} 3... d6 {[%clk 0:03:00.4]}
4. Nf3 {[%clk 0:03:01.9]} 4... Bg4 {[%clk 0:02:59.5]} 5. h3 {[%clk 0:02:53.7]}
5... Bxf3 {[%clk 0:02:59.4]} 6. Qxf3 {[%clk 0:02:53.3]} 6... dxe5 {[%clk
0:02:59.6]} 7. dxe5 {[%clk 0:02:49.6]} 7... e6 {[%clk 0:02:59.7]} 8. Nd2 {[%clk
0:02:35.8]} 8... Nd7 {[%clk 0:02:58.4]} 9. Qg3 {[%clk 0:02:31.5]} 9... c6 {[%clk
0:02:54]} 10. Bd3 {[%clk 0:02:25.8]} 10... Qc7 {[%clk 0:02:51.8]} 11. Nf3 {[%clk
0:02:23.8]} 11... Nc5 {[%clk 0:02:48.2]} 12. O-O {[%clk 0:02:21.7]} 12... h6
{[%clk 0:02:38.4]} 13. Be2 {[%clk 0:02:17.3]} 13... O-O-O {[%clk 0:02:35.7]} 14.
a3 {[%clk 0:02:15]} 14... g5 {[%clk 0:02:30.5]} 15. c4 {[%clk 0:02:13.2]} 15...
Ne7 {[%clk 0:02:29.9]} 16. b4 {[%clk 0:02:05.7]} 16... Nb3 {[%clk 0:02:23.5]}
17. Rb1 {[%clk 0:02:05.5]} 17... Nf5 {[%clk 0:02:15.7]} 18. Qg4 {[%clk
0:02:04.8]} 18... Nxc1 {[%clk 0:01:55.7]} 19. Rfxc1 {[%clk 0:02:02.4]} 19... h5
{[%clk 0:01:54.8]} 20. Qe4 {[%clk 0:01:58.7]} 20... g4 {[%clk 0:01:48.4]} 21.
hxg4 {[%clk 0:01:54.7]} 21... hxg4 {[%clk 0:01:48]} 22. Qxg4 {[%clk 0:01:55.4]}
22... Be7 {[%clk 0:01:42.6]} 23. Rd1 {[%clk 0:01:52.7]} 23... Rdg8 {[%clk
0:01:41.6]} 24. Qe4 {[%clk 0:01:53.2]} 24... Rg7 {[%clk 0:01:34.6]} 25. c5
{[%clk 0:01:51.4]} 25... Nh4 {[%clk 0:01:22.1]} 26. g3 {[%clk 0:01:45.8]} 26...
Nf5 {[%clk 0:01:17]} 27. Kg2 {[%clk 0:01:42.5]} 27... Rhg8 {[%clk 0:01:15]} 28.
Rh1 {[%clk 0:01:38.5]} 28... Kb8 {[%clk 0:00:54.2]} 29. Rh3 {[%clk 0:01:37.6]}
29... f6 {[%clk 0:00:47.5]} 30. Rbh1 {[%clk 0:01:36.6]} 30... Qd7 {[%clk
0:00:39.8]} 31. Bc4 {[%clk 0:01:28.9]} 31... fxe5 {[%clk 0:00:33]} 32. Qxe5+
{[%clk 0:01:27.7]} 32... Ka8 {[%clk 0:00:32.3]} 33. Bxe6 {[%clk 0:01:27.3]} 1-0

[Event "*** Titled Tuesday Blitz"]
[Site "Chess.com"]
[Date "2021.03.09"]
[Round "2"]
[White "howitzer14"]
[Black "Sashadav97"]
[Result "1-0"]
[WhiteElo "3028"]
[BlackElo "2589"]
[TimeControl "180+1"]
[EndTime "10:17:22 PST"]
[Termination "howitzer14 won by resignation"]

1. f4 {[%clk 0:03:00.9]} 1... f5 {[%clk 0:02:53.2]} 2. e4 {[%clk 0:02:56.9]}
2... fxe4 {[%clk 0:02:36.6]} 3. d3 {[%clk 0:02:56.4]} 3... exd3 {[%clk
0:02:22.6]} 4. Bxd3 {[%clk 0:02:57.3]} 4... Nf6 {[%clk 0:02:23.2]} 5. Nf3 {[%clk
0:02:49]} 5... e6 {[%clk 0:02:19.1]} 6. O-O {[%clk 0:02:49.9]} 6... Bc5+ {[%clk
0:02:18.5]} 7. Kh1 {[%clk 0:02:49.6]} 7... O-O {[%clk 0:02:18.6]} 8. c4 {[%clk
0:02:43]} 8... b6 {[%clk 0:02:13.3]} 9. Nc3 {[%clk 0:02:42.3]} 9... Bb7 {[%clk
0:02:13.4]} 10. Ng5 {[%clk 0:02:27.2]} 10... Nc6 {[%clk 0:02:04.6]} 11. Nce4
{[%clk 0:02:23.8]} 11... h6 {[%clk 0:01:46.6]} 12. Nxf6+ {[%clk 0:02:15.6]}
12... Qxf6 {[%clk 0:01:26.4]} 13. Nh7 {[%clk 0:02:07.9]} 13... Qd4 {[%clk
0:01:26.9]} 14. Nxf8 {[%clk 0:02:05.2]} 14... Rxf8 {[%clk 0:01:27.8]} 15. Be2
{[%clk 0:01:57.5]} 15... Qe4 {[%clk 0:01:11.8]} 16. Bd3 {[%clk 0:01:49.5]} 16...
Qd4 {[%clk 0:01:10.3]} 17. a3 {[%clk 0:01:41]} 17... a5 {[%clk 0:01:08.1]} 18.
Be2 {[%clk 0:01:40.8]} 18... Qe4 {[%clk 0:01:07.4]} 19. Bd3 {[%clk 0:01:40.7]}
19... Qd4 {[%clk 0:01:07.8]} 20. Qc2 {[%clk 0:01:29.3]} 20... Ne5 {[%clk
0:01:01.1]} 21. Be2 {[%clk 0:01:13.6]} 21... Be4 {[%clk 0:00:57.3]} 22. Qd2
{[%clk 0:01:10.8]} 22... Nd3 {[%clk 0:00:55.7]} 23. Bxd3 {[%clk 0:01:07.6]}
23... Bxd3 {[%clk 0:00:56.6]} 24. Rd1 {[%clk 0:01:04.7]} 1-0